Cogmind - Beta 14 @@@ ROGUE MODE // 2024.08.11 @ 20:32:19 Player: osman sinnoks Result: Destroyed by as-78127 with Assembled Rifle Performance ------------- Evolutions (0) 0 Regions Visited (4) 800 Robots Destroyed (24) 120 Value Destroyed (420) 420 Prototype IDs (3) 60 Alien Tech Used (0) 0 Bonus (0) 0 TOTAL SCORE: 1400 Bonus ------- None Cogmind --------- Core Integrity 0/250 Matter 239/300 Energy 100/100 System Corruption 3% Temperature Cool (0) Movement Walking (140) Location -9/Mines Parts ------- > --- POWER (1) -------- (None) > --- PROPULSION (2) --- Makeshift Leg Makeshift Leg > --- UTILITY (2) ------ Heat Sink Small Storage Unit > --- WEAPON (2) ------- Pulse Rifle Gauss Rifle > --- INVENTORY (8) ---- Aluminum Leg Weight Redist. System ECM Suite Hardened Medium Armor Plating Reflective Plating Hacking Suite Makeshift Hacking Suite Makeshift Hacking Suite Peak State ------------ > --- POWER ------------ Light Nuclear Core > --- PROPULSION ------- Makeshift Leg Makeshift Leg > --- UTILITY ---------- Heat Sink Small Storage Unit > --- WEAPON ----------- Pulse Rifle Gauss Rifle > --- INVENTORY -------- Aluminum Leg Weight Redist. System ECM Suite Hardened Medium Armor Plating Reflective Plating Hacking Suite Makeshift Hacking Suite Makeshift Hacking Suite [Rating: 22] Favorites ----------- Power Ion Engine Engine Ion Engine Power Core Light Nuclear Core Propulsion Aluminum Leg Leg Aluminum Leg Utility Small Storage Unit Device Heat Sink Storage Small Storage Unit Processor Signal Interpreter Weapon Improved Medium Laser Energy Gun Improved Medium Laser Ballistic Gun Light Assault Rifle Build | -11 -10 -10 -10 -9 ------- Run | Yrd Mat Min Exi Min Slots Evolved . | . . . . . Power . | . . . . . Propulsion . | . . . . . Utility . | . . . . . Weapon . | . . . . . Parts Attached 23 | 5 8 6 4 . Power 4 | 1 1 1 1 . Engine 3 | 1 1 1 . . Core 1 | . . . 1 . Reactor . | . . . . . Propulsion 7 | 2 2 1 2 . Treads . | . . . . . Leg 7 | 2 2 1 2 . Wheel . | . . . . . Hover . | . . . . . Flight . | . . . . . Utility 5 | . 3 2 . . Device 3 | . 1 2 . . Storage 1 | . 1 . . . Processor 1 | . 1 . . . Hackware . | . . . . . Protection . | . . . . . Artifact . | . . . . . Weapon 7 | 2 2 2 1 . Energy Gun 5 | 1 2 2 . . Energy Cannon . | . . . . . Ballistic Gun 2 | 1 . . 1 . Ballistic Cannon . | . . . . . Launcher . | . . . . . Special Weapon . | . . . . . Impact Weapon . | . . . . . Slashing Weapon . | . . . . . Piercing Weapon . | . . . . . Special Melee Weapon . | . . . . . Unidentified Prototypes 1 | . 1 . . . Parts Lost 3 | . . 2 . 1 Power 2 | . . 1 . 1 Propulsion 1 | . . 1 . . Utility . | . . . . . Weapon . | . . . . . Highest Loss Streak 2 | . . 2 . 1 To Critical Strikes . | . . . . . Average Slot Usage (%) 98 | . 97 98 100 98 Engine 12 | . 14 14 11 . Core 1 | . . . 2 12 Leg 27 | . 28 27 28 28 Device 12 | . 12 12 14 14 Storage 13 | . 13 14 14 14 Energy Gun 19 | . 15 27 20 14 Ballistic Gun 8 | . 12 . 7 14 Peak Build Rating 22 | 5 12 12 22 22 Average Rating 11 | 4 7 11 15 21 On Entrance 10 | . 5 12 12 22 Naked Turns . | . . . . . Heaviest Build 18 | 8 17 17 18 18 Greatest Support 40 | 20 20 20 40 40 Greatest Overweight (x) 1 | 1 . . . . Average Overweight (x) . | . . . . . Largest Inventory Capacity 8 | 5 8 8 8 8 Average Capacity 7 | 5 7 8 8 8 Most Carried 8 | . 8 8 8 8 Average Carried 5 | . 2 6 7 8 Final Capacity 8 | 5 8 8 8 8 Final Carried 8 | . 8 8 8 8 Class Distribution -------------------- 88% | Mutant 11% | Scavenger-Mutant Dominant Class ---------------- Mutant | -10/Materials Mutant | -10/Mines Mutant | -10/Exiles Mutant | -9/Mines Resources | -11 -10 -10 -10 -9 ----------- Run | Yrd Mat Min Exi Min Matter Collected 439 | 266 83 53 37 . Remotely . | . . . . . Salvage Created 730 | 186 343 116 57 28 Parts 51 | 8 34 6 3 . Haulers Intercepted 2 | . 2 . . . Recyclers Shooed . | . . . . . Parts Field Recycled . | . . . . . Retrieved Matter . | . . . . . Parts Self-Destructed . | . . . . . Prevented . | . . . . . Kills | -11 -10 -10 -10 -9 ------- Run | Yrd Mat Min Exi Min Combat Hostiles Destroyed 14 | . 6 5 1 2 Guns 13 | . 6 4 1 2 Classes Destroyed 9 | 2 5 . 1 1 Tunneler 5 | 5 . . . . Hauler 2 | . 2 . . . Recycler 1 | 1 . . . . Operator 2 | . 2 . . . Watcher 2 | . 2 . . . Swarmer 6 | . 3 3 . . Grunt 5 | . 3 2 . . Hunter 1 | . . . 1 . Assembled 2 | . . . . 2 Best Kill Streak 5 | 5 4 3 1 2 Combat Bots Only 3 | . 3 3 1 2 Max Kills in Single Turn 1 | 1 1 1 1 1 Gunslinging . | . . . . . Exploded . | . . . . . Melee . | . . . . . Uniques/NPCs Destroyed . | . . . . . Combat | -11 -10 -10 -10 -9 -------- Run | Yrd Mat Min Exi Min Hostile Shots Fired 98 | . 45 29 . 24 Missed 31 | . 17 5 . 9 Damage Taken 939 | . 330 324 . 285 Core 253 | . 73 110 . 70 Absorbed by Shields . | . . . . . Core Remaining (%) 100 | 100 . . . . Volleys Fired 71 | 16 29 14 6 6 Largest 2 | 2 2 2 2 2 Hottest 126 | 70 112 112 126 91 Shots Fired 140 | 32 58 28 10 12 Gun 140 | 32 58 28 10 12 Cannon . | . . . . . Launcher . | . . . . . Special . | . . . . . Kinetic 50 | 16 28 . . 6 Thermal 90 | 16 30 28 10 6 Explosive . | . . . . . Electromagnetic . | . . . . . Robot Hit Streak 10 | 10 10 4 3 3 Robot Miss Streak 5 | 1 3 5 2 3 Penetration Max . | . . . . . Secondary Targets 4 | . 2 1 . 1 Max Gunslinging Chain 1 | . 1 1 . 1 Shots Hit Robots 88 | 24 36 16 6 6 Core Hits 43 | 9 22 5 3 4 Critical Kills . | . . . . . Critical Parts Destroyed . | . . . . . Critical Strikes 9 | . 3 6 . . Burn 9 | . 3 6 . . Melee Attacks . | . . . . . Impact . | . . . . . Slashing . | . . . . . Piercing . | . . . . . Sneak Attacks . | . . . . . Combat Hostiles . | . . . . . Follow-up Attacks . | . . . . . Damage Inflicted 1153 | 251 393 295 102 112 Guns 1148 | 251 388 295 102 112 Cannons . | . . . . . Explosions . | . . . . . Melee . | . . . . . Ramming 5 | . 5 . . . Kinetic 283 | 79 160 . . 44 Thermal 865 | 172 228 295 102 68 Explosive . | . . . . . Electromagnetic . | . . . . . Impact . | . . . . . Slashing . | . . . . . Piercing . | . . . . . Highest Corruption 3 | . 1 1 1 3 Average Corruption 1 | . 1 1 1 1 Corruption Purged . | . . . . . Corruption Blocked . | . . . . . Effects 16 | . . 6 7 3 Message Errors 3 | . . 1 1 1 Matter Fused 3 | . . 1 . 2 Heat Flow Errors 3 | . . 2 1 . Energy Discharges 3 | . . 1 2 . Data Loss (minor) 3 | . . 1 2 . Alerts 1 | . . . 1 . Overload Shots . | . . . . . Overflow Damage . | . . . . . Projectiles . | . . . . . Explosions . | . . . . . Melee . | . . . . . Knockbacks . | . . . . . Impact . | . . . . . Kinetic . | . . . . . Secondary . | . . . . . Self-Inflicted Damage . | . . . . . Shots . | . . . . . Rammed . | . . . . . Targets Rammed 1 | . 1 . . . Kicked 1 | . 1 . . . Crushed . | . . . . . Highest Temperature 549 | 142 126 549 89 30 Average Temperature 90 | 51 44 217 27 16 Received Heat Transfer 183 | . 72 111 . . Effects 11 | . . 11 . . Shutdowns 1 | . . 1 . . Interference 5 | . . 5 . . Damage (major) 4 | . . 4 . . Damage (core) 1 | . . 1 . . Siege Activations . | . . . . . Robots Corrupted . | . . . . . Combat Hostiles . | . . . . . Parts Fried . | . . . . . Impact Corruptions . | . . . . . Robots Melted 1 | . . 1 . . Combat Hostiles 1 | . . 1 . . Parts Melted 7 | . 4 3 . . Heat Transferred 2849 | 518 888 1073 222 148 Parts Sabotaged . | . . . . . Parts Stolen . | . . . . . Parts Stripped . | . . . . . Power Chain Reactions . | . . . . . Alert | -11 -10 -10 -10 -9 ------- Run | Yrd Mat Min Exi Min Peak Influence 194 | 30 194 142 . . Initial 27 | . 19 27 . . Average 70 | 13 66 109 . . Maximum Alert Level . | . . . . . Low Security (%) 100 | 100 100 100 . 100 Level 1 . | . . . . . Level 2 . | . . . . . Level 3 . | . . . . . Level 4 . | . . . . . Level 5 . | . . . . . High Security . | . . . . . Max Security . | . . . . . Squads Dispatched 2 | . 1 1 . . Investigation 1 | . . 1 . . Extermination . | . . . . . Reinforcement 1 | . 1 . . . Assault . | . . . . . Garrison . | . . . . . Intercept . | . . . . . Searches Triggered . | . . . . . Construction Impeded . | . . . . . Haulers Reinforced . | . . . . . Active Scanning Responses . | . . . . . Cargo Convoy Interrupts . | . . . . . Stealth | -11 -10 -10 -10 -9 --------- Run | Yrd Mat Min Exi Min Distress Signals . | . . . . . Communications Jammed . | . . . . . Distress Signals . | . . . . . Times Spotted 25 | . 11 5 . 9 Peak Tracking Total 7 | . 4 3 . 7 Tactical Retreats . | . . . . . Traps | -11 -10 -10 -10 -9 ------- Run | Yrd Mat Min Exi Min Traps Triggered 1 | . 1 . . . Indirectly . | . . . . . Trap Hack Attempts . | . . . . . Triggered . | . . . . . Disarmed 4 | . 4 . . . Reprogrammed . | . . . . . Reused . | . . . . . Traps Extracted . | . . . . . Installed . | . . . . . Triggered . | . . . . . Most Traps Carried 1 | . . 1 1 . Machines | -11 -10 -10 -10 -9 ---------- Run | Yrd Mat Min Exi Min Machines Disabled . | . . . . . Max in Single Turn . | . . . . . Machines Repaired . | . . . . . Machines Dismantled . | . . . . . Machines Sabotaged . | . . . . . Overloaded Fab Kills . | . . . . . Hacking | -11 -10 -10 -10 -9 --------- Run | Yrd Mat Min Exi Min Machines Accessed 8 | . 4 1 3 . Terminals 4 | . 4 . . . Fabricators . | . . . . . Repair Stations . | . . . . . Recycling Units . | . . . . . Scanalyzers . | . . . . . Garrison Access . | . . . . . Total Hacks 30 | . 17 1 12 . Successful 24 | . 11 1 12 . Failed 6 | . 6 . . . Catastrophic 1 | . 1 . . . Database Lockouts . | . . . . . Manual . | . . . . . Terminals 17 | . 17 . . . Fabricators . | . . . . . Repair Stations . | . . . . . Recycling Units . | . . . . . Scanalyzers . | . . . . . Garrison Access . | . . . . . Terminal Hacks 24 | . 11 1 12 . Record 13 | . 1 . 12 . Prototype ID Bank 1 | . 1 . . . Open Door 1 | . . 1 . . Emergency Access Points 1 | . 1 . . . Alert Level 2 | . 2 . . . Locate Traps 1 | . 1 . . . Disarm Traps 1 | . 1 . . . Maintenance Status 1 | . 1 . . . Patrol Status 1 | . 1 . . . Registered Components 1 | . 1 . . . Zone Layout 1 | . 1 . . . Fabricator Hacks . | . . . . . Repair Station Hacks . | . . . . . Recycling Unit Hacks . | . . . . . Scanalyzer . | . . . . . Garrison Access Hacks . | . . . . . Unauthorized Hacks . | . . . . . Terminals . | . . . . . Fabricators . | . . . . . Repair Stations . | . . . . . Recycling Units . | . . . . . Scanalyzers . | . . . . . Garrison Access . | . . . . . Data Cores Recovered 1 | . 1 . . . Used . | . . . . . Hacking Detections 4 | . 4 . . . Full Trace Events . | . . . . . Feedback Events . | . . . . . Feedback Blocked . | . . . . . Robot Schematics Acquired . | . . . . . Robots Built . | . . . . . Authchips . | . . . . . Time . | . . . . . Total Robot Build Rating . | . . . . . Part Schematics Acquired . | . . . . . Parts Built . | . . . . . Authchips . | . . . . . Time . | . . . . . Total Part Build Rating . | . . . . . Parts Repaired . | . . . . . Time . | . . . . . Parts Recycled . | . . . . . Recycled Matter . | . . . . . Retrieved Matter . | . . . . . Retrieved Components . | . . . . . Parts Scanalyzed . | . . . . . Part Schematics Acquired . | . . . . . Parts Damaged . | . . . . . Bothacking | -11 -10 -10 -10 -9 ------------ Run | Yrd Mat Min Exi Min Used RIF Installer . | . . . . . Robots Hacked . | . . . . . Non-combat . | . . . . . Combat . | . . . . . Robot Hacks Applied . | . . . . . Relay Couplers Released . | . . . . . Fabnet Peak Effective % . | . . . . . Robots Rewired . | . . . . . Allies Hacked . | . . . . . Hacks Repelled . | . . . . . Allies | -11 -10 -10 -10 -9 -------- Run | Yrd Mat Min Exi Min Total Allies . | . . . . . Largest Group . | . . . . . Highest-Rated Group . | . . . . . Highest-Rated Ally . | . . . . . Total Orders . | . . . . . Ally Attacks . | . . . . . Total Damage . | . . . . . Kills . | . . . . . Allies Corrupted . | . . . . . Allies Melted . | . . . . . Intel | -11 -10 -10 -10 -9 ------- Run | Yrd Mat Min Exi Min Robot Analysis Total . | . . . . . Derelict Logs Recovered 2 | . . 2 . . Drone Launches . | . . . . . Drone Recoveries . | . . . . . Exploration | -11 -10 -10 -10 -9 ------------- Run | Yrd Mat Min Exi Min Turns Passed 1898 | 125 679 422 581 91 Spaces Moved 1258 | 63 400 306 437 52 Core 6 | 6 . . . . Treads . | . . . . . Legs 1252 | 57 400 306 437 52 Wheels . | . . . . . Hover . | . . . . . Flight . | . . . . . Fastest Speed 50 | 50 120 120 120 140 Average Speed 123 | 116 120 120 127 140 Slowest Speed 140 | 120 120 120 140 140 Overloaded Moves . | . . . . . Propulsion Burnouts . | . . . . . Robots Hopped . | . . . . . Cave-ins Triggered . | . . . . . Exploration Rate (%) 55 | 3 82 75 89 27 Regions Visited 4 Branch Regions 3 Pre-discovered Areas 1 | . . . 1 . Known Exits Taken 1 | . 1 . . . Unknown Exits Taken 3 | 1 . 1 1 . Scrap Searched 1 | . . 1 . . Spaces Dug . | . . . . . Terrain Destroyed . | . . . . . Melee . | . . . . . Projectile . | . . . . . AOE . | . . . . . Terrain Rammed . | . . . . . Walls Destroyed . | . . . . . Machines Disabled . | . . . . . Actions | -11 -10 -10 -10 -9 --------- Run | Yrd Mat Min Exi Min Total 1472 | 83 545 332 454 58 Wait 97 | . 97 . . . Move 1254 | 62 399 305 436 52 Hop . | . . . . . Pick Up 13 | . 7 4 2 . Fast Attach 12 | 5 4 2 1 . Attach 3 | . 1 2 . . Detach . | . . . . . Swap 8 | . 3 2 3 . Drop 13 | . 4 3 6 . Fire 71 | 16 29 14 6 6 Melee . | . . . . . Ram . | . . . . . Kick 1 | . 1 . . . Crush . | . . . . . Escape Stasis . | . . . . . Rewire . | . . . . . Trap . | . . . . . Miscellaneous . | . . . . . Route ------- -11/Scrapyard -10/Materials (discovered 5 exits: [*Mat x3] / *Min x2) -10/Mines (discovered 3 exits: [*Mat x2] / *Exi) -10/Exiles -9/Mines History --------- Turn | Location | Event 7 | -11/Scrapyard | Discovered new exit (range 15) 126 | -11/Scrapyard | Entered Materials 218 | -10/Materials | Discovered new exit (range 3) 307 | -10/Materials | Build established: Mutant 399 | -10/Materials | Discovered new exit (range 12) 520 | -10/Materials | Discovered new exit (range 12) 684 | -10/Materials | Discovered new exit (range 8) 784 | -10/Materials | Discovered new exit (range 16) 804 | -10/Materials | Identified exit to Mines 805 | -10/Materials | Entered Mines 838 | -10/Mines | Core integrity fell below 50% 889 | -10/Mines | Learned Materials stockpile data 961 | -10/Mines | Learned Materials security intel 1038 | -10/Mines | Discovered new exit (range 7) 1119 | -10/Mines | Met a Derelict shopkeep closing up shop 1154 | -10/Mines | Found a hidden stash of uninstalled traps 1215 | -10/Mines | Discovered new exit (range 7) 1222 | -10/Mines | Deemed a non-threat by the Exiles lab entrance 1222 | -10/Mines | Discovered new exit (range 5) 1227 | -10/Mines | Entered Exiles 1227 | -10/Exiles | Found Exiles lab destroyed 1741 | -10/Exiles | Learned location of Zion (-6) 1793 | -10/Exiles | Discovered new exit (range 11) 1808 | -10/Exiles | Entered Mines 1868 | -9/Mines | Assembled infested the area 1898 | -9/Mines | Core integrity fell below 20% 1899 | -9/Mines | Destroyed by as-78127 with Assembled Rifle Last Messages --------------- System corrupted: IFF burst signal emitted. EXIT=FOUND LOCATION=UNKNOWN GOAL=ESCAPE LTTDK VN|PH1A:IEBGVFAOV System corrupted: Matter fused (-5). ALERT: Infestation in the mines, dispatching Demolisher response squad. as-31558 destroyed. Switching to secondary target: as-78127. Slug penetrates Wall. Slug penetrates as-69894. as-69894 destroyed. Slug penetrates as-60796. Lgt. Nuclear Core destroyed. System corrupted by crushing effect (+2). Knocked back. System corrupted: Matter fused (-7). as-60796 destroyed. as-05490 destroyed. Map ----- +----------------------------------------------------+ | ??????????????????????????????????????? | | ??????????????????????????????????????? | | ??????????????????????????????????????? | | ??????????????????????????????????????? | | ???????????????? ?????????????????????? | | ???????????????? #????????????????????? | | ???????????????? ????????????????????? | | ???????????????? #????? ??????????????? | | ???????????????? #???? ???????????????? | | ???????????????? #??? #???????????????? | | ???????????????? #??? #???????????????? | | ??????????????## #?? ???#????????????? | | ???????####???#% ###a?? #????????????? | | ??????## ##? %### #????????????? | | ??????# #? #????????????? | | ??????# #?# ##???????????? | | ???????# ### d #???????????? | | ????????# ## #???????????? | | ??????##### d""" ?????????????? | | ???#### ## """ #??????????? | | ??## """ ????????? | | ?## ????????? | | ?# ## #??????????? | | ?# ##??# ##??????????? | | ?## #????###???????????? | | ??# @ ##??????????????????? | | ??# #???????????????????? | | ?# #???????????????????? | | ?# #??###??????????????? | | ?# ##### ##?## ##?????????????? | | ?# #???# ##??# #?????????????? | | ?# #???# ##??## #??####????????? | | ?# #???# #?## #### ##???????? | | ?## ##???# ### ## ######### | | ??###?????# # ## | | ??????????# # ## | | ????????### # ### #######??? | | ???????## # ## #????????? | | ???????# ### ##????????? | | ???????# !!!! ### #?????????? | | ???????## !!!! #?????????? | | ????????### !!!! ##### #????????? | | ??????????# !!!! #???## #????????? | | ??????????# #????# ##????????? | | ??????????#### #????# #?????????? | | ?????????????## ##???? #?????????? | | ??????????????###????? #?????????? | | ????????????????????? #?????????? | | ?????????????????????# ##?????????? | | ?????????????????????#######??????????? | +----------------------------------------------------+ Best States ------------- Heat Dissipation 35 Energy Generation 14 Energy Capacity 250 Matter Stores 300 Matter Capacity 300 Sight Range 16 Terrain Scan Density 10 Evasion (%) 55 Item Schematics ----------------- None Robot Schematics ------------------ None Fabricated ------------ Nothing Alien Tech Used ----------------- None Achievements -------------- None Challenges ------------ None Game ------ Seed StealthTeslaAxe Manual? 0 Play Time 00:16:39 Cumulative 19.2 hours Start 2024.08.11 @ 20:15:17 End 2024.08.11 @ 20:32:19 Sessions 1 Manual Loads 0 Difficulty Rogue Special Mode None Game No. 42 Rogue 42 Adventurer 0 Explorer 0 Win Type - Total 0 Types 0/0/0/0/0/0/0/0/0 Lore% 14 Gallery% 24 Achievement% 20 Wizard Run 0 Options --------- Layout 1 ASCII 0 Keyboard 0 Movement Mouse Keybinds 0 Fullscreen 1 Font 24/Smallcaps Map View 50x40 Zoom Use 0% Tactical HUD 0 Map Filters NONE Filters NONE Steam 1 RUN: 2ba4b8fb-d8d9-4f02-bc57-6ff346505417